Cogmind - Beta 9.2 @@@ ROGUE MODE // 2019.11.10 @ 01:43:54 Player: Nikolayag Result: Destroyed by S-27 Virus with Autogun Performance ------------- Evolutions (4) 2000 Regions Visited (5) 1000 Robots Destroyed (120) 600 Value Destroyed (3803) 3803 Prototype IDs (4) 80 Alien Tech Used (0) 0 Bonus (243) 243 TOTAL SCORE: 7726 Bonus ------- High Alert Combat Kills 243 Cogmind --------- Core Integrity 0/850 Matter 247/300 Energy 18/100 System Corruption 2% Temperature Cool (25) Movement Flying (40) Location -6/Factory Parts ------- > --- POWER (1) -------- (None) > --- PROPULSION (4) --- Xenon Bombardment Thruster Biomechanical Wings Biomechanical Wings > --- UTILITY (7) ------ Improved Signal Interpreter Hacking Suite System Shield System Shield > --- WEAPON (3) ------- (None) > --- INVENTORY (4) ---- Long-range Sensor Array EM Pulse Cannon Gauss Rifle Long-range Missile Launcher Peak State ------------ > --- POWER ------------ Light Nuclear Core > --- PROPULSION ------- Gravmag System Gravmag System Gravmag System Gravmag System > --- UTILITY ---------- High-capacity Storage Unit High-capacity Storage Unit High-capacity Storage Unit Advanced Sensor Array Improved Signal Interpreter Hacking Suite System Shield > --- WEAPON ----------- Gauss Rifle Gauss Rifle Spear > --- INVENTORY -------- Light Nuclear Core Enhanced Nuclear Core Improved Hover Unit Improved Heat Sink High-capacity Storage Unit High-capacity Storage Unit Compact Matter Pod Improved Medium Armor Plating Improved Medium Armor Plating Improved Medium Armor Plating System Shield Arc Projector EM Pulse Cannon EM Pulse Cannon Minigun Enhanced Autogun Enhanced Autogun Gauss Rifle Gauss Rifle Gauss Rifle Proton Missile Launcher Mini Grenade Launcher Improved Datajack Axe [Rating: 52] Favorites ----------- Power Light Nuclear Core Engine Ion Engine Power Core Light Nuclear Core Propulsion Light Treads Treads Light Treads Wheel Wheel Hover Unit Gravmag System Flight Unit Biomechanical Wings Utility High-capacity Storage Unit Device Improved Heat Sink Storage High-capacity Storage Unit Processor Improved Signal Interpreter Hackware System Shield Protection Light Armor Plating Weapon Gauss Rifle Energy Gun Advanced Beam Rifle Energy Cannon EM Pulse Cannon Ballistic Gun Gauss Rifle Ballistic Cannon Advanced Assault Cannon Launcher Proton Missile Launcher Slashing Weapon Axe Piercing Weapon Spear Special Melee Weapon Improved Datajack Build | -11 -10 -9 -8 -7 -6 ------- Run | Scr Mat Mat Mat Fac Fac Slots Evolved 8 | . . 2 2 2 2 Power . | . . . . . . Propulsion 2 | . . . . 1 1 Utility 5 | . . 2 1 1 1 Weapon 1 | . . . 1 . . Parts Attached 122 | 6 5 18 35 36 22 Power 14 | 1 1 1 4 4 3 Engine 4 | 1 1 . 1 1 . Core 10 | . . 1 3 3 3 Reactor . | . . . . . . Propulsion 28 | 2 . 3 4 8 11 Treads 8 | 1 . 1 4 2 . Leg . | . . . . . . Wheel 9 | 1 . 2 . 6 . Hover 7 | . . . . . 7 Flight 4 | . . . . . 4 Utility 39 | 1 4 7 11 10 6 Device 9 | . . 1 1 4 3 Storage 9 | 1 4 2 1 1 . Processor 1 | . . . . 1 . Hackware 5 | . . . . 2 3 Protection 15 | . . 4 9 2 . Artifact . | . . . . . . Weapon 41 | 2 . 7 16 14 2 Energy Gun 11 | 1 . 3 4 3 . Energy Cannon 3 | . . . . 3 . Ballistic Gun 18 | 1 . 4 9 4 . Ballistic Cannon 2 | . . . 2 . . Launcher 3 | . . . 1 1 1 Special Weapon . | . . . . . . Impact Weapon . | . . . . . . Slashing Weapon 2 | . . . . 2 . Piercing Weapon 1 | . . . . 1 . Special Melee Weapon 1 | . . . . . 1 Unidentified Prototypes 4 | . . . 2 1 1 Parts Lost 46 | . . 13 9 12 12 Power 5 | . . . 1 2 2 Propulsion 17 | . . 3 2 5 7 Utility 7 | . . 3 2 1 1 Weapon 17 | . . 7 4 4 2 Highest Loss Streak 8 | . . 8 4 5 7 Average Slot Usage (%) 94 | . 97 95 94 96 83 Engine 2 | . 14 2 2 . . Core 5 | . . 8 6 6 5 Treads 9 | . 14 10 9 9 1 Wheel 9 | . 14 10 8 10 3 Hover 1 | . . . . . 14 Device 7 | . . 8 4 12 5 Storage 22 | . 26 22 26 23 8 Processor 3 | . . . . 7 6 Hackware 3 | . . . . 1 22 Protection 4 | . . 10 8 1 . Energy Gun 4 | . 14 5 6 . . Ballistic Gun 12 | . 14 16 18 8 5 Ballistic Cannon 2 | . . . 1 5 . Piercing Weapon 1 | . . . . 4 5 Naked Turns . | . . . . . . Heaviest Build 125 | 13 41 83 122 125 115 Greatest Support 60 | 20 20 20 40 60 44 Greatest Overweight (x) 12 | . 4 5 7 12 5 Average Overweight (x) 4 | . 2 3 6 6 . Largest Inventory Capacity 28 | 6 16 20 28 28 28 Average Capacity 22 | 5 12 16 27 28 15 Most Carried 28 | 6 14 20 28 28 28 Average Carried 20 | 3 9 13 23 26 14 Final Capacity 28 | 6 16 20 28 28 4 Final Carried 28 | 6 14 16 26 28 4 Class Distribution -------------------- 28% | Hauler-Mutant 22% | Hauler-Tank 16% | Mutant 13% | Scavenger-Mutant 8% | Hacker-Mutant 7% | Hauler-Gunner 3% | Hauler-Skirmisher Dominant Class ---------------- Mutant | -10/Materials Scavenger-Mutant | -9/Materials Hauler-Tank | -8/Materials Hauler-Mutant | -7/Factory Hacker-Mutant | -6/Factory Resources | -11 -10 -9 -8 -7 -6 ----------- Run | Scr Mat Mat Mat Fac Fac Matter Collected 3275 | 266 155 289 1379 702 484 Remotely . | . . . . . . Salvage Created 4784 | 69 425 631 1951 1172 536 Parts 251 | 2 28 34 97 63 27 Haulers Intercepted 7 | . 2 . 4 1 . Recyclers Shooed 5 | . 1 . . 3 1 Parts Field Recycled . | . . . . . . Retrieved Matter . | . . . . . . Parts Self-Destructed . | . . . . . . Prevented . | . . . . . . Kills | -11 -10 -9 -8 -7 -6 ------- Run | Scr Mat Mat Mat Fac Fac Combat Hostiles Destroyed 86 | . 9 13 33 22 9 Melee 2 | . . . . . 2 Guns 56 | . 9 13 26 8 . Cannons 16 | . . . 4 12 . AOE 11 | . . . 3 1 7 Classes Destroyed 15 | 1 4 2 4 3 1 Worker 7 | . 1 1 2 3 . Builder 7 | . . 1 4 2 . Tunneler 1 | . . . . . 1 Hauler 7 | . 2 . 4 1 . Recycler 7 | 1 . . 1 3 2 Mechanic 1 | . . . 1 . . Operator 2 | . . . . 1 1 Watcher 2 | . . . 1 . 1 Swarmer 19 | . 3 . 3 6 7 Grunt 44 | . 6 9 17 10 2 Brawler 3 | . . . 3 . . Duelist 1 | . . . . 1 . Sentry 14 | . . 4 7 3 . Hunter 3 | . . . 3 . . Programmer 2 | . . . . 2 . Best Kill Streak 6 | 1 4 4 5 6 6 Combat Bots Only 5 | . 3 4 4 5 4 Max Kills in Single Turn 6 | 1 1 2 3 2 6 Gunslinging . | . . . . . . Exploded 4 | . . . 3 1 4 Melee 1 | . . . . . 1 Uniques/NPCs Destroyed . | . . . . . . Combat | -11 -10 -9 -8 -7 -6 -------- Run | Scr Mat Mat Mat Fac Fac Damage Taken 7655 | . 346 1318 2195 2239 1557 Core 1806 | . 51 223 374 305 853 Absorbed by Shields . | . . . . . . Core Remaining (%) 62 | 100 79 44 32 56 . Volleys Fired 274 | 2 35 55 114 67 1 Largest 3 | 2 2 2 3 3 1 Hottest 172 | 70 70 113 147 172 43 Shots Fired 658 | 4 70 103 335 145 1 Gun 541 | 4 70 103 301 63 . Cannon 113 | . . . 33 80 . Launcher 4 | . . . 1 2 1 Special . | . . . . . . Kinetic 463 | 2 35 71 241 114 . Thermal 181 | 2 35 32 93 19 . Explosive 2 | . . . 1 . 1 Electromagnetic 12 | . . . . 12 . Robot Hit Streak 31 | 3 12 22 12 31 2 Robot Miss Streak 4 | . 4 2 4 3 . Penetration Max 1 | . . . 1 . . Secondary Targets 6 | . 2 1 2 1 . Max Gunslinging Chain 1 | . 1 1 1 1 . Shots Hit Robots 480 | 3 50 79 224 112 12 Core Hits 194 | 2 21 27 81 48 15 Critical Hits 5 | . . 1 2 1 1 Critical Kills 3 | . . 1 . 1 1 Critical Parts Destroyed 1 | . . . 1 . . Melee Attacks 53 | . . . . 24 29 Impact . | . . . . . . Slashing 21 | . . . . 21 . Piercing 32 | . . . . 3 29 Sneak Attacks 14 | . . . . 9 5 Combat Hostiles . | . . . . . . Follow-up Attacks . | . . . . . . Damage Inflicted 10798 | 37 686 1084 3945 3557 1489 Guns 5774 | 37 685 1084 3150 818 . Cannons 2028 | . . . 601 1427 . Explosions 1241 | . . . 194 216 831 Melee 1754 | . . . . 1096 658 Ramming 1 | . 1 . . . . Kinetic 5330 | 11 343 679 2476 1821 . Thermal 2308 | 26 342 405 1275 260 . Explosive 1025 | . . . 194 . 831 Electromagnetic 380 | . . . . 380 . Impact . | . . . . . . Slashing 923 | . . . . 923 . Piercing 831 | . . . . 173 658 Highest Corruption 8 | . 2 . 1 8 2 Average Corruption 3 | . 2 . 1 6 1 Corruption Purged . | . . . . . . Effects 43 | . 4 . 7 29 3 Message Errors 13 | . 3 . 3 6 1 Matter Fused 5 | . . . . 5 . Heat Flow Errors 8 | . . . . 6 2 Energy Discharges 5 | . 1 . . 4 . Data Loss (minor) 3 | . . . . 3 . Data Loss (major) 1 | . . . . 1 . Misfires 1 | . . . . 1 . Targeting Errors 7 | . . . 4 3 . Overload Shots . | . . . . . . Overflow Damage 625 | . . . 9 480 136 Projectiles 48 | . . . 9 39 . Explosions 16 | . . . . 16 . Melee 561 | . . . . 425 136 Knockbacks 20 | . . . 9 11 . Impact . | . . . . . . Kinetic 17 | . . . 7 10 . Secondary 3 | . . . 2 1 . Self-Inflicted Damage 80 | . . . 48 32 . Shots 3 | . . . 1 2 . Rammed 2 | . 2 . . . . Targets Rammed 2 | . 2 . . . . Kicked . | . . . . . . Crushed . | . . . . . . Highest Temperature 310 | 18 165 310 281 286 247 Average Temperature 85 | 10 39 158 77 100 108 Received Heat Transfer 2235 | . 165 531 729 552 258 Effects 4 | . . 3 . . 1 Energy Bleed 1 | . . 1 . . . Interference 3 | . . 2 . . 1 Siege Activations . | . . . . . . Robots Corrupted 2 | . . . . 2 . Combat Hostiles 1 | . . . . 1 . Parts Fried 2 | . . . . 2 . Impact Corruptions . | . . . . . . Robots Melted . | . . . . . . Combat Hostiles . | . . . . . . Parts Melted 3 | . . 3 . . . Heat Transferred 4911 | 74 999 999 2358 481 . Parts Sabotaged . | . . . . . . Parts Stolen . | . . . . . . Parts Stripped . | . . . . . . Power Chain Reactions . | . . . . . . Missiles Intercepted . | . . . . . . Alert | -11 -10 -9 -8 -7 -6 ------- Run | Scr Mat Mat Mat Fac Fac Peak Influence 710 | 5 195 207 710 520 397 Average Influence 252 | 2 73 80 216 434 240 Maximum Alert Level 3 | . . 1 3 2 1 Low Security (%) 43 | 100 100 98 56 . 8 Level 1 21 | . . 1 22 12 91 Level 2 34 | . . . 20 87 . Level 3 . | . . . . . . Level 4 . | . . . . . . Level 5 . | . . . . . . High Security . | . . . . . . Max Security . | . . . . . . Squads Dispatched 18 | . 1 2 5 5 5 Investigation 3 | . . 1 1 . 1 Extermination 2 | . . . . 1 1 Reinforcement 9 | . 1 1 2 3 2 Assault 2 | . . . 1 1 . Garrison 2 | . . . 1 . 1 Intercept . | . . . . . . Construction Impeded 3 | . . . 1 2 . Haulers Reinforced . | . . . . . . Stealth | -11 -10 -9 -8 -7 -6 --------- Run | Scr Mat Mat Mat Fac Fac Distress Signals 9 | . 4 1 1 2 1 Communications Jammed . | . . . . . . Distress Signals . | . . . . . . Times Spotted 152 | . 19 21 49 32 31 Peak Tracking Total 15 | . 4 6 5 5 15 Tactical Retreats 7 | . 1 . 3 1 2 Traps | -11 -10 -9 -8 -7 -6 ------- Run | Scr Mat Mat Mat Fac Fac Traps Triggered 7 | . 1 1 2 3 . Indirectly . | . . . . . . Trap Hack Attempts . | . . . . . . Triggered . | . . . . . . Disarmed . | . . . . . . Reprogrammed . | . . . . . . Reused . | . . . . . . Traps Extracted . | . . . . . . Installed . | . . . . . . Triggered . | . . . . . . Machines | -11 -10 -9 -8 -7 -6 ---------- Run | Scr Mat Mat Mat Fac Fac Machines Disabled 16 | . . . 5 10 1 Max in Single Turn 2 | . . . 1 2 1 Garrison Access 3 | . . . . 2 1 Machines Sabotaged . | . . . . . . Garrisons Compromised . | . . . . . . Overloaded Fab Kills . | . . . . . . Fab Network Shutdowns . | . . . . . . Hacking | -11 -10 -9 -8 -7 -6 --------- Run | Scr Mat Mat Mat Fac Fac Machines Accessed 19 | . 1 1 5 6 6 Terminals 15 | . 1 1 5 3 5 Fabricators 1 | . . . . 1 . Repair Stations . | . . . . . . Recycling Units . | . . . . . . Scanalyzers . | . . . . . . Garrison Access 3 | . . . . 2 1 Total Hacks 59 | . 2 3 11 17 26 Successful 27 | . 2 1 7 6 11 Failed 32 | . . 2 4 11 15 Catastrophic 6 | . . . 1 3 2 Database Lockouts . | . . . . . . Manual 37 | . 3 . 9 7 18 Terminals 48 | . 2 3 11 7 25 Fabricators 6 | . . . . 6 . Repair Stations . | . . . . . . Recycling Units . | . . . . . . Scanalyzers . | . . . . . . Garrison Access 5 | . . . . 4 1 Terminal Hacks 11 | . 1 1 4 1 4 Part Schematic 1 | . . . . 1 . Level Access Points 1 | . . . . . 1 Machine Index 1 | . . . . . 1 Recall Reinforcements 1 | . . . . . 1 Hauler Manifests 1 | . . . 1 . . Zone Layout 6 | . 1 1 3 . 1 Fabricator Hacks 3 | . . . . 3 . Load Schematic 1 | . . . . 1 . Build 2 | . . . . 2 . Repair Station Hacks . | . . . . . . Recycling Unit Hacks . | . . . . . . Scanalyzer . | . . . . . . Garrison Access Hacks 3 | . . . . 2 1 Seal Access 3 | . . . . 2 1 Unauthorized Hacks 29 | . 2 . 8 4 15 Terminals 9 | . 1 . 3 . 5 Assimilate 1 | . . . . . 1 Botnet 6 | . 1 . 2 . 3 Detonate 1 | . . . . . 1 Operators 1 | . . . 1 . . Fabricators . | . . . . . . Repair Stations . | . . . . . . Recycling Units . | . . . . . . Scanalyzers . | . . . . . . Garrison Access . | . . . . . . Data Cores Recovered . | . . . . . . Used . | . . . . . . Hacking Detections 15 | . 1 1 4 4 5 Full Trace Events 2 | . . . 1 . 1 Feedback Events . | . . . . . . Feedback Blocked . | . . . . . . Robot Schematics Acquired . | . . . . . . Robots Built . | . . . . . . Matter . | . . . . . . Time . | . . . . . . Total Robot Build Rating . | . . . . . . Part Schematics Acquired 1 | . . . . 1 . Parts Built 4 | . . . . 4 . Matter 336 | . . . . 336 . Time 84 | . . . . 84 . Total Part Build Rating 16 | . . . . 16 . Parts Repaired . | . . . . . . Time . | . . . . . . Parts Recycled . | . . . . . . Recycled Matter . | . . . . . . Retrieved Matter . | . . . . . . Retrieved Components . | . . . . . . Parts Scanalyzed . | . . . . . . Part Schematics Acquired . | . . . . . . Parts Damaged . | . . . . . . Bothacking | -11 -10 -9 -8 -7 -6 ------------ Run | Scr Mat Mat Mat Fac Fac Used RIF Installer . | . . . . . . Robots Hacked . | . . . . . . Non-combat . | . . . . . . Combat . | . . . . . . Robot Hacks Applied . | . . . . . . Relay Couplers Released . | . . . . . . Robots Rewired . | . . . . . . Allies Hacked . | . . . . . . Hacks Repelled . | . . . . . . Allies | -11 -10 -9 -8 -7 -6 -------- Run | Scr Mat Mat Mat Fac Fac Total Allies 1 | . . . . . 1 Largest Group 1 | . . . . . 1 Highest-Rated Group 10 | . . . . . 10 Highest-Rated Ally 10 | . . . . . 10 Total Orders . | . . . . . . Ally Attacks . | . . . . . . Total Damage . | . . . . . . Kills . | . . . . . . Allies Corrupted . | . . . . . . Allies Melted . | . . . . . . Intel | -11 -10 -9 -8 -7 -6 ------- Run | Scr Mat Mat Mat Fac Fac Robot Analysis Total . | . . . . . . Derelict Logs Recovered . | . . . . . . Drone Launches 6 | . . . . . 6 Drone Recoveries . | . . . . . . Exploration | -11 -10 -9 -8 -7 -6 ------------- Run | Scr Mat Mat Mat Fac Fac Turns Passed 6331 | 94 740 858 1824 2096 719 Spaces Moved 3634 | 51 444 452 758 1051 878 Core 87 | 5 . . . . 82 Treads 272 | 42 96 12 47 75 . Legs . | . . . . . . Wheels 2605 | 4 348 440 711 976 126 Hover 498 | . . . . . 498 Flight 172 | . . . . . 172 Fastest Speed 31 | 50 100 120 150 116 31 Average Speed 128 | 142 123 131 169 151 65 Slowest Speed 280 | 160 180 200 270 280 130 Overloaded Moves . | . . . . . . Propulsion Burnouts . | . . . . . . Robots Hopped 1 | . . . . . 1 Cave-ins Triggered . | . . . . . . Exploration Rate (%) 38 | 5 72 40 57 34 23 Regions Visited 5 Branch Regions . Pre-discovered Areas . | . . . . . . Known Exits Taken 1 | . . . . 1 . Unknown Exits Taken 4 | 1 1 1 1 . . Scrap Searched . | . . . . . . Spaces Dug 22 | . . . 8 5 9 Terrain Destroyed 46 | . . . 19 14 13 Melee 14 | . . . . 5 9 Projectile 20 | . . . 11 9 . AOE 12 | . . . 8 . 4 Actions | -11 -10 -9 -8 -7 -6 --------- Run | Scr Mat Mat Mat Fac Fac Total 4730 | 65 564 619 1093 1401 988 Wait 463 | 1 67 65 128 183 19 Move 3627 | 50 443 451 757 1050 876 Hop 1 | . . . . . 1 Pick Up 90 | 6 8 22 29 20 5 Fast Attach 31 | 6 1 1 7 7 9 Attach 45 | . . 15 9 10 11 Detach 10 | . . . 1 2 7 Swap 46 | . 4 2 19 19 2 Drop 81 | . 4 8 29 15 25 Fire 274 | 2 35 55 114 67 1 Melee 53 | . . . . 24 29 Ram 1 | . 1 . . . . Kick . | . . . . . . Crush 1 | . 1 . . . . Escape Stasis 4 | . . . . 4 . Rewire . | . . . . . . Trap . | . . . . . . Miscellaneous 3 | . . . . . 3 Route ------- -11/Scrapyard -10/Materials (discovered 3 exits: *Mat x2 / [*Min]) -9/Materials (discovered 3 exits: *Mat x2 / [*Sto]) -8/Materials (discovered 3 exits: *Fac x3) -7/Factory (discovered 2 exits: *Fac x2) -6/Factory (discovered 4 exits: Fac x4) History --------- Turn | Location | Event 5 | -11/Scrapyard | Discovered new exit (range 16) 95 | -11/Scrapyard | Entered Materials 311 | -10/Materials | Build established: Mutant 326 | -10/Materials | Discovered new exit (range 7) 427 | -10/Materials | Discovered new exit (range 11) 728 | -10/Materials | Discovered new exit (range 9) 835 | -10/Materials | Entered another Materials area 835 | -9/Materials | Evolved 2 slots: Utility x2 1064 | -9/Materials | Lost 8 parts (3n1u4w) 1241 | -9/Materials | Discovered new exit (range 9) 1355 | -9/Materials | Core integrity fell below 50% 1380 | -9/Materials | Build established: Scavenger-Mutant 1406 | -9/Materials | Discovered new exit (range 5) 1534 | -9/Materials | Discovered new exit (range 7) 1693 | -9/Materials | Entered another Materials area 1693 | -8/Materials | Evolved 2 slots: Utility x1, Weapon x1 1819 | -8/Materials | Lost 4 parts (1n2u1w) 2080 | -8/Materials | Build established: Hauler-Gunner 2207 | -8/Materials | Discovered new exit (range 5) 2527 | -8/Materials | Build established: Hauler-Tank 2709 | -8/Materials | Discovered new exit (range 5) 3099 | -8/Materials | Discovered new exit (range 9) 3136 | -8/Materials | Core integrity fell below 50% 3293 | -8/Materials | First assault squad dispatched 3477 | -8/Materials | Garrison activated, responded to threat 3517 | -8/Materials | Entered Factory 3517 | -7/Factory | Evolved 2 slots: Propulsion x1, Utility x1 4009 | -7/Factory | Discovered new exit (range 8) 4116 | -7/Factory | Lost 4 parts (1p2n1u) 4312 | -7/Factory | Lost 5 parts (1n4w) 4446 | -7/Factory | Build established: Hauler-Mutant 5367 | -7/Factory | Discovered new exit (range 4) 5370 | -7/Factory | Identified exit to Factory 5497 | -7/Factory | Fabricated Gravmag System (x2) 5517 | -7/Factory | First assault squad dispatched 5539 | -7/Factory | Fabricated Gravmag System (x2) 5613 | -7/Factory | Entered another Factory area 5613 | -6/Factory | Evolved 2 slots: Propulsion x1, Utility x1 5882 | -6/Factory | Identified exit to Factory 5883 | -6/Factory | Spotted B-75 Beast 6006 | -6/Factory | Garrison activated, responded to threat 6102 | -6/Factory | Build established: Hacker-Mutant 6242 | -6/Factory | Core integrity fell below 50% 6242 | -6/Factory | Core integrity fell below 20% 6258 | -6/Factory | Lost 7 parts (5n2w) 6332 | -6/Factory | Destroyed by S-27 Virus with Autogun Last Messages --------------- 06309_ O-16 Technician: "IFF HANDSHAKE FAILED. SECURING TERMINAL." 06312_ Connecting with Terminal... 06312_ ALERT: Suspicious activity at Terminal F022. Dispatching Investigation squad. 06312_ ALERT: Hostiles spotted, dispatching reinforcements to Terminal F014. 06318_ Hacking Suite destroyed. 06319_ Lgt. Nuclear Core destroyed. 06320_ Drone released from Drone Bay. 06322_ Drone destroyed. 06323_ Drone released from Drone Bay. 06324_ Drone destroyed. 06325_ System corrupted: Heat flow error (+284). 06327_ Overheating: System interference. 06327_ Imp. Signal Interpreter temporarily disabled. 06327_ Drone destroyed. 06328_ Drone suffers critical hit. 06328_ Drone destroyed. 06329_ Xenon Bombardment Thruster destroyed. 06330_ Drone destroyed. Map ----- +----------------------------------------------------+ | ?????????????????????????????????????????????????? | | ?????????????????????????????????????????????????? | | ?????????????????????????????????????????????????? | | ?????????????????????????????????????????????????? | | ?????????????????????????????????????????????????? | | ?????????????????????????????????????????????????? | | ?????????????????????????????????????????????????? | | ?????????????????????????????????????????????????? | | ?????????????????????????????????????????????????? | | ?????????????????????????????????????????????????? | | ?????????????????????????????????????????????????? | | ?????????????????????????????????????????????????? | | ?????????????????????????????????????????????????? | | ?????????????????????????????????????????????????? | | ?????????????? ????????????????????????????????? | | ?????????????? ???????????????????????????????? | | ????????????? ########???????????????????????? | | ????????????? #???????????????????????? | | ????????????? #???????????????????????? | | ?????????????? #???????????????????????? | | ???????????????? +???????????????????????? | | ?????????????????? #???????????????????????? | | ???????????????????# #???????????????????????? | | ???????????????????# ########????????????????? | | ???????????????????# #????????????????? | | ???????????????????# @ #????????????????? | | ???????????????????# #????????????????? | | ???????????????????# #????????????????? | | ???????????????????# #????????????????? | | ???????????????????# #????????????????? | | ???????????????????# % #????????????????? | | ???????????????????# #????????????????? | | ???????????????????# ss #????????????????? | | ???????????????????# #????????????????? | | ??????????????????# %%sss #????????????????? | | ?????????????????# ps s #????????????????? | | ????????????????# ###+########????????????? | | ???????????????## ## % #????????????? | | ??????????????# # #????????????? | | ############### # !!] #????????????? | | "" #% !!]% #????????????? | | T # !]] #????????????? | | # #????????????? | | ######## # #????????????? | | #??????# # #????????????? | | #???#######+########### ##????????????? | | #???# = #????##?????????????? | | #???# #???????????????????? | | #???# """"""" "" #???????????????????? | | #???# """"""" T" #???????????????????? | +----------------------------------------------------+ Best States ------------- Heat Dissipation 51 Energy Generation 17 Energy Capacity 300 Matter Stores 300 Matter Capacity 300 Sight Range 16 Robot Scan Range 20 Terrain Scan Density 10 Armor Coverage 300 Resistance: TH 10 Evasion (%) 63 Recoil Reduction 3 Offensive Hacking 20 Defensive Hacking 30 Item Schematics ----------------- Gravmag System | -7/Factory | Hacked Robot Schematics ------------------ None Fabricated ------------ Gravmag System | x2 | -7/Factory Gravmag System | x2 | -7/Factory Alien Tech Used ----------------- None Achievements -------------- None Challenges ------------ None Game ------ Seed IntegrationFlyingCorpse Manual? 0 Play Time 01:02:22 Cumulative 201.0 hours Start 2019.11.10 @ 00:34:38 End 2019.11.10 @ 01:43:54 Sessions 1 Manual Loads 0 Difficulty Rogue Special Mode None Game No. 186 Rogue 186 Adventurer 0 Explorer 0 Win Type - Total 5 Types 5/0/0/0/0/0/0 Lore% 58 Gallery% 72 Achievement% 51 Wizard Run 0 Options --------- ASCII 0 Keyboard 0 Movement Numpad Keybinds 0 Fullscreen 2 Font 18/SmallcapsGlow Map View 76x50 Tactical HUD 1 Map Filters NONE Filters NONE Steam X RUN: cda9b3d6-dff9-4a9b-8be0-fc744bc81780